bitfinex/quotes_ETHUSD_20240604
["timestamp","ask_amount","ask_price","bid_price","bid_amount"]
[1717525506199,2.4899,3826.8,3826.1,0.02874437]
[1717525506398,0.43619,3826.7,3826.1,0.02874437]
[1717525506896,0.43619,3826.7,3826.0,2.61369]
[1717525507097,2.4899,3826.8,3826.3,2.61348]
[1717525507458,5.10188,3827.1,3826.3,2.61348]
[1717525507901,5.10188,3827.1,3825.4,2.3181]
[1717525508063,1.872,3826.5,3825.9,2.61372]
[1717525508263,4.2865,3826.5,3825.9,2.61372]
[1717525508490,2.4145,3826.5,3826.1,2.61362]
[1717525509086,4.2054,3826.9,3826.1,2.61362]
[1717525509289,24.35004604,3827.2,3826.4,2.61342]
[1717525510991,11.99004604,3827.2,3826.4,2.61342]
[1717525511195,11.99004604,3827.2,3826.0,2.2625]
[1717525511196,2.61303,3827.0,3826.0,2.61363]
[1717525511392,2.3334,3826.9,3826.0,2.61363]
[1717525511594,3.294993,3826.8,3826.1,0.02861709]
[1717525511900,3.294993,3826.8,3826.0,2.61363]
[1717525512222,0.681843,3826.8,3825.3,3.0]
[1717525512368,1.872,3826.3,3826.1,0.02858015]
[1717525512704,2.2736,3826.2,3825.5,2.61397]
[1717525512905,2.949509,3826.2,3825.5,2.61397]
[1717525513076,2.949509,3826.2,3825.6,0.02873237]
[1717525513404,2.61364,3826.1,3825.6,0.02873237]
[1717525513576,2.61364,3826.1,3825.1,2.61426]
[1717525513788,2.61364,3826.1,3825.7,0.02878092]
[1717525513996,1.60471679,3826.0,3825.1,2.61426]
[1717525514425,4.48579,3825.9,3825.1,2.61426]
[1717525514585,4.48579,3825.9,3824.5,2.4564]
[1717525514586,4.48579,3825.9,3824.8,2.61451]
[1717525514917,4.48579,3825.9,3824.9,0.02914772]
[1717525515880,6.45547284,3826.2,3824.9,0.02914772]
[1717525516295,4.88716,3826.2,3824.4,3.54159336]
[1717525516500,4.88716,3826.2,3825.2,2.61417]
[1717525516924,4.88716,3826.2,3825.3,0.02928115]
[1717525517298,4.88716,3826.2,3825.2,2.61417]
[1717525517638,1.872,3825.5,3824.8,2.61447]
[1717525517786,0.1872,3825.4,3824.8,2.61447]
[1717525517986,2.4387,3825.4,3824.8,2.61447]
[1717525518432,2.4387,3825.4,3824.4,2.61472]
[1717525518743,2.61417,3825.3,3824.5,0.02863227]
[1717525519100,2.61417,3825.3,3824.4,2.61472]
[1717525519490,2.61417,3825.3,3824.5,0.02850691]
[1717525519689,3.306657,3825.3,3824.5,0.02850691]
[1717525519915,2.61433,3825.1,3824.5,0.02850691]
[1717525520119,2.61433,3825.1,3824.1,2.61499]
[1717525520318,2.61433,3825.1,3824.6,0.02859612]
[1717525520492,2.61433,3825.1,3824.1,2.61499]
[1717525520703,5.05281,3825.4,3824.7,0.02855998]
[1717525520928,5.05281,3825.4,3824.4,2.61474]
[1717525523004,5.05281,3825.4,3824.8,2.61445]
[1717525523005,2.4387,3825.4,3824.8,2.61445]
[1717525523590,2.4387,3825.4,3824.5,2.61471]
[1717525523591,5.05286,3825.4,3824.5,2.61471]
[1717525523797,5.558146,3825.4,3824.5,2.61471]
[1717525524527,5.558146,3825.4,3824.6,3.0]
[1717525525086,5.05286,3825.4,3824.7,2.61456]
[1717525526939,5.05286,3825.4,3824.6,3.0]
[1717525527110,6.92486,3825.4,3824.5,3.0]
[1717525527743,6.92486,3825.4,3824.1,2.61497]
[1717525527744,2.61429,3825.2,3824.1,2.61497]
[1717525528057,2.3732,3824.9,3824.6,0.02898474]
[1717525528193,2.3732,3824.9,3824.2,3.0]
[1717525528194,2.3732,3824.9,3824.3,2.61484]
[1717525528620,2.3732,3824.9,3824.4,0.0290633]
[1717525530918,2.3731,3825.3,3824.7,2.61454]
[1717525531327,2.3731,3825.3,3824.8,0.02896887]
[1717525531625,2.3731,3825.3,3824.7,2.61454]
[1717525531834,2.3731,3825.3,3824.9,2.64333273]
[1717525532027,7.04370604,3825.5,3824.9,2.6144]
[1717525532535,7.04370604,3825.5,3825.1,2.61426]
[1717525532754,7.04370604,3825.5,3825.3,2.61412]
[1717525532970,7.04370604,3826.1,3825.3,2.61412]
[1717525533184,8.74462264,3826.1,3825.3,2.61412]
[1717525533470,2.6137,3826.0,3825.3,2.61412]
[1717525534928,7.04370604,3826.1,3825.3,2.61412]
[1717525535134,9.65736604,3826.1,3825.3,2.61412]
[1717525536540,2.6138,3825.9,3825.0,2.61435]
[1717525536754,3.8275406,3825.9,3825.0,2.61435]
[1717525536979,2.61393,3825.7,3824.6,5.61458]
[1717525537178,2.61393,3825.7,3825.1,0.02865046]
[1717525537339,2.61393,3825.7,3824.7,3.0]
[1717525537539,3.18389706,3825.7,3824.7,3.0]
[1717525537737,3.18389706,3825.7,3824.8,0.02875887]
[1717525538076,2.3729,3825.4,3824.8,0.02875887]
[1717525538848,2.3729,3825.4,3824.6,2.61458]
[1717525539044,2.3729,3825.4,3824.7,0.02880758]
[1717525539274,0.42449,3825.3,3824.7,0.02880758]
[1717525540063,1.872,3825.1,3824.7,0.02880758]
[1717525540250,1.872,3825.1,3824.3,2.61485]
[1717525540583,0.42449,3825.3,3824.5,2.61471]
[1717525540584,3.60360554,3825.3,3824.5,2.61471]
[1717525541435,1.30202116,3825.2,3824.5,2.61471]
[1717525541637,3.17402116,3825.2,3824.5,2.61471]
[1717525542973,0.55,3825.1,3824.2,2.61491]
[1717525543137,1.872,3824.8,3824.2,2.61491]
[1717525543470,1.872,3824.8,3824.3,0.02922801]
[1717525543680,0.1872,3824.7,3824.3,0.02922801]
[1717525544033,0.1872,3824.7,3823.9,2.61511]
[1717525544034,2.324,3824.6,3823.9,2.61511]
[1717525544393,2.324,3824.6,3824.0,0.02960931]
[1717525544951,1.872,3824.4,3824.0,0.02960931]
[1717525545156,0.681066,3824.3,3823.6,2.61532]
[1717525545360,0.681066,3824.3,3824.1,0.02969401]
[1717525545657,0.681066,3824.3,3823.2,2.61554]
[1717525545658,2.61507,3824.0,3823.2,2.61554]
[1717525545970,2.61521,3823.8,3822.9,2.61581]
[1717525546172,1.872,3823.5,3822.5,2.61602]
[1717525546474,1.872,3823.5,3823.0,0.0293345]
[1717525546475,0.7372,3823.4,3823.0,0.0293345]
[1717525546779,0.7372,3823.4,3822.6,0.02938665]
[1717525546977,0.7372,3823.4,3822.5,2.61602]
[1717525547182,0.7372,3823.4,3822.7,0.02929767]
[1717525547390,0.7372,3823.4,3822.6,0.02933385]
[1717525547598,0.522461,3823.3,3822.5,2.61602]
[1717525547737,2.61561,3823.2,3822.7,0.02925871]
[1717525547938,1.872,3823.1,3822.1,2.61629]
[1717525548139,1.872,3823.1,3822.8,0.0293199]
[1717525548410,0.5010071,3823.0,3822.1,2.61629]
[1717525548561,1.872,3823.1,3822.1,2.61629]
[1717525548745,0.1872,3823.4,3822.2,0.029537]
[1717525548746,1.872,3822.7,3822.2,0.029537]
[1717525548940,2.4738,3822.7,3822.0,2.6164]
[1717525549244,2.4738,3822.7,3822.3,0.02958778]
[1717525549443,2.4738,3822.7,3822.0,2.6164]
[1717525549444,2.4738,3822.7,3821.6,2.61665]
[1717525549652,1.872,3822.6,3821.7,0.02979582]
[1717525549957,2.61612,3822.5,3821.7,0.02979582]
[1717525551434,2.61637,3822.1,3821.7,0.02979582]
[1717525551560,2.61637,3822.1,3821.2,2.61692]
[1717525551766,1.872,3822.2,3821.8,0.02966207]
[1717525551962,2.61614,3822.5,3821.5,2.61676]
[1717525552161,2.61614,3822.5,3821.9,0.03034773]
[1717525552345,2.61614,3822.5,3821.7,2.61657]
[1717525552545,2.4738,3822.7,3822.0,0.03031154]
[1717525552748,2.61587,3822.9,3822.0,2.61641]
[1717525552949,2.61587,3822.9,3822.1,0.03027534]
[1717525553185,2.61587,3822.9,3822.1,0.29494387]
[1717525553595,2.61587,3822.9,3822.2,2.61627]
[1717525554024,2.61587,3822.9,3822.3,0.02999813]
[1717525554808,2.61568,3823.1,3822.3,0.02999813]
[1717525556166,2.61568,3823.1,3822.4,2.61614]
[1717525556413,2.3523,3823.2,3822.5,0.26461381]
[1717525556607,1.872,3823.3,3822.5,0.26461381]
[1717525556767,1.872,3823.3,3822.6,0.02975141]
[1717525557120,2.61561,3823.2,3822.6,0.02975141]
[1717525557793,1.872,3823.3,3822.6,0.02975141]
[1717525558107,1.872,3823.3,3822.5,0.26461381]
[1717525558665,1.872,3823.3,3822.4,2.61614]
[1717525558666,2.61564,3823.2,3822.4,2.61614]
[1717525559076,2.61564,3823.2,3822.1,2.61635]
[1717525559271,1.872,3822.9,3822.2,0.02988988]
[1717525560252,2.4697,3822.8,3822.2,0.02988988]
[1717525560579,5.08564,3822.8,3821.8,2.61656]
[1717525560931,1.872,3822.5,3821.9,0.02999847]
[1717525561094,2.61621,3822.4,3821.9,0.02999847]
[1717525561288,2.61621,3822.4,3821.5,2.61676]
[1717525561537,2.6164,3822.1,3821.1,2.61703]
[1717525561674,2.6164,3822.1,3821.6,0.02967592]
[1717525562043,2.6164,3822.1,3821.1,2.61703]
[1717525562200,2.6164,3822.1,3821.7,0.02940504]
[1717525562404,2.6164,3822.1,3821.1,2.61703]
[1717525562744,2.61649,3821.9,3821.1,2.61703]
[1717525562919,2.2532,3822.0,3821.3,2.61685]
[1717525563282,2.2532,3822.0,3820.6,3.0]
[1717525563283,7.04370604,3822.3,3821.6,2.61668]
[1717525563535,7.04370604,3822.3,3821.6,2.878348]
[1717525563948,7.04370604,3822.3,3821.8,2.61651]
[1717525565025,7.04370604,3822.3,3821.6,0.261668]
[1717525565229,7.04370604,3822.3,3821.5,2.61676]
[1717525566484,2.6163,3822.2,3821.2,2.61695]
[1717525566696,2.6163,3822.2,3821.3,0.02961435]
[1717525567350,2.6163,3822.2,3821.2,2.61695]
[1717525567691,2.6163,3822.2,3821.3,0.02968878]
[1717525567897,2.2999,3821.9,3821.3,0.02968878]
[1717525568098,2.2999,3821.9,3821.2,2.61695]
[1717525568495,2.2999,3821.9,3821.3,0.02966568]
[1717525568496,2.61657,3821.8,3821.3,0.02966568]
[1717525569034,2.61675,3821.6,3820.9,2.61716]
[1717525569215,2.61675,3821.6,3820.6,2.61736]
[1717525569549,2.61687,3821.4,3820.6,2.61736]
[1717525569711,2.285,3821.3,3820.7,0.03016228]
[1717525569916,2.285,3821.3,3820.6,2.61736]
[1717525570489,9.66035604,3821.7,3820.8,2.61719]
[1717525570753,9.66035604,3821.7,3821.0,2.61707]
[1717525571225,9.66035604,3821.7,3821.1,0.02819611]
[1717525571615,7.04370604,3821.7,3821.1,0.02819611]
[1717525571818,7.04370604,3821.7,3821.2,2.61695]
[1717525572245,7.04370604,3821.7,3821.3,0.02812369]
[1717525572455,7.04370604,3821.7,3821.4,2.61682]
[1717525572626,7.04370604,3821.7,3821.4,2.88131437]
[1717525572833,7.04370604,3821.7,3821.6,2.6167]
[1717525573189,7.04370604,3822.4,3821.8,2.61651]
[1717525575065,1.872,3822.3,3821.5,2.61676]
[1717525575357,4.52230545,3822.3,3821.5,2.61676]
[1717525575829,1.872,3822.3,3821.5,2.61676]
[1717525577426,4.92485,3822.5,3820.5,2.4681]
[1717525577427,1.872,3821.6,3820.8,2.61723]
[1717525577847,1.872,3821.6,3820.9,0.02606935]
[1717525578051,1.872,3821.6,3821.0,2.61709]
[1717525578348,2.61662,3821.8,3821.1,0.02608801]
[1717525578549,3.065482,3821.8,3821.1,0.02608801]
[1717525579519,3.065482,3821.8,3821.0,2.61709]
[1717525582050,3.065482,3821.8,3820.1,2.61771]
[1717525582051,2.748,3823.6,3821.3,2.6169]
[1717525582235,2.748,3823.6,3821.6,2.61669]
[1717525582236,1.872,3822.9,3821.6,2.61669]
[1717525582636,1.872,3822.9,3821.8,2.61656]
[1717525582637,2.61599,3822.7,3821.8,2.61656]
[1717525582872,0.448799,3822.6,3821.8,2.61656]
[1717525583081,0.448799,3822.6,3821.9,0.02584839]
[1717525583374,2.61609,3822.5,3821.9,0.02584839]
[1717525583737,4.48809,3822.5,3821.9,0.02584839]
[1717525584269,1.872,3822.1,3821.4,2.61677]
[1717525584424,1.872,3822.1,3822.0,0.02583129]
[1717525584620,1.872,3822.1,3821.4,2.61677]
[1717525585444,5.748,3823.5,3821.7,2.61663]
[1717525585445,1.872,3822.5,3821.7,2.61663]
[1717525585972,1.872,3822.5,3821.8,0.02590368]
[1717525586357,2.61604,3822.6,3821.8,0.02590368]
[1717525586358,4.48782,3822.9,3821.9,2.61649]
[1717525586666,0.448782,3822.8,3821.9,2.61649]
[1717525586869,0.448782,3822.8,3822.0,0.02583129]
[1717525589379,4.48782,3822.9,3822.0,0.02583129]
[1717525589543,4.48782,3822.9,3822.1,2.61634]
[1717525590222,4.48782,3822.9,3822.2,0.02557044]
[1717525590893,4.48782,3822.9,3822.3,2.61621]
[1717525591232,4.48782,3822.9,3822.4,0.02541013]
[1717525591740,5.05223,3823.2,3822.5,2.61606]
[1717525591952,5.05223,3823.2,3822.5,2.64144337]
[1717525592370,2.61563,3823.2,3822.5,2.64144337]
[1717525592674,1.872,3823.3,3822.7,2.61591]
[1717525593045,1.872,3823.3,3822.8,0.02527482]
[1717525593243,2.57027,3823.3,3822.8,0.02527482]
[1717525593449,2.57027,3823.3,3822.7,2.61591]
[1717525593881,2.6155,3823.4,3822.7,2.61591]
[1717525594684,2.4952,3823.6,3822.9,2.61579]
[1717525594830,4.48731,3823.7,3822.9,2.61579]
[1717525595031,4.48731,3823.7,3823.1,2.61567]
[1717525595250,4.90089,3824.0,3823.1,2.61567]
[1717525595547,5.578179,3824.0,3823.2,0.02513011]
[1717525595779,5.578179,3824.0,3823.3,2.61552]
[1717525595945,5.578179,3824.0,3823.3,2.64061394]
[1717525596627,3.292379,3824.0,3823.3,2.64061394]
[1717525598275,2.61522,3823.8,3823.3,0.02509394]
[1717525598436,3.1316709,3823.8,3823.3,0.02509394]
[1717525598636,3.1316709,3823.8,3823.0,2.6157]
[1717525598836,2.61522,3823.8,3823.4,0.02505777]
[1717525599033,2.61522,3823.8,3823.0,2.6157]
[1717525599282,2.61522,3823.8,3823.5,0.0250216]
[1717525599583,2.61522,3823.8,3823.6,0.0246244]
[1717525599785,2.61545,3823.5,3822.7,2.6159]
[1717525600078,1.872,3823.7,3822.9,2.61576]
[1717525600635,1.872,3823.7,3822.5,3.0]
[1717525600836,2.61523,3823.8,3823.1,5.05584]
[1717525601297,2.61523,3823.8,3823.2,0.02476908]
[1717525602069,6.86444,3824.1,3823.3,2.61552]
[1717525602250,6.86444,3824.1,3823.2,0.02476908]
[1717525602251,5.11895338,3824.1,3823.2,0.02476908]
[1717525602447,5.11895338,3824.1,3823.4,0.02469674]
[1717525602681,2.61543,3823.5,3823.3,0.02473291]
[1717525602878,2.61543,3823.5,3822.7,3.0]
[1717525603194,1.872,3823.7,3823.0,2.61568]
[1717525603393,1.872,3823.7,3822.7,3.0]
[1717525603537,2.6152,3823.8,3823.2,2.61558]
[1717525604361,2.6152,3823.8,3822.6,2.4854]
[1717525605042,2.6152,3823.8,3823.1,2.61564]
[1717525605942,2.6152,3823.8,3822.8,2.61583]
[1717525606292,2.6152,3823.8,3822.4,3.0]
[1717525606293,2.2866,3823.5,3822.5,2.61605]
[1717525607472,2.61564,3823.2,3822.4,3.0]
[1717525607789,2.61564,3823.2,3821.9,4.94307]
[1717525607790,2.61578,3823.0,3821.9,4.94307]
[1717525608167,2.61592,3822.8,3821.9,2.61647]
[1717525608323,6.89352,3822.8,3821.9,2.61647]
[1717525608487,2.61607,3822.6,3821.6,2.6167]
[1717525608688,2.61607,3822.6,3821.6,2.87837]
[1717525610309,2.61607,3822.6,3821.6,2.6167]
[1717525612592,2.61622,3822.4,3821.0,3.0]
[1717525612788,2.61622,3822.4,3820.9,2.3434]
[1717525613040,2.61622,3822.4,3821.6,2.61669]
[1717525613205,2.61622,3822.4,3821.7,0.261669]
[1717525616199,2.61622,3822.4,3821.8,0.02563043]
[1717525616607,2.61597,3822.7,3821.8,0.02563043]
[1717525616934,2.61597,3822.7,3821.8,2.64215043]
[1717525619356,2.61616,3822.4,3821.8,0.02563043]
[1717525619529,0.261616,3822.3,3821.5,2.61674]
[1717525619744,0.261616,3822.3,3821.6,0.02570283]
[1717525621794,2.61616,3822.4,3821.6,0.02570283]
[1717525622028,2.61616,3822.4,3821.7,2.6166]
[1717525622549,2.61616,3822.4,3821.8,0.02574977]
[1717525622702,2.61596,3822.7,3821.8,0.02574977]
[1717525624220,2.61596,3822.7,3821.9,2.61648]
[1717525624458,2.61596,3822.7,3822.0,0.26422298]
[1717525624868,2.61596,3822.7,3822.1,0.02564118]
[1717525626057,2.4056,3822.8,3822.1,2.64195118]
[1717525626229,2.61576,3823.0,3822.1,2.64195118]
[1717525626433,2.56576,3823.0,3822.1,2.64195118]
[1717525626630,2.56576,3823.0,3822.2,0.52107742]
[1717525626951,2.56576,3823.0,3822.2,0.54658821]
[1717525627752,2.56576,3823.0,3822.3,2.6162]
[1717525628189,2.56576,3823.0,3822.3,2.6416746]
[1717525630788,4.1357219,3823.0,3822.3,2.6416746]
[1717525630956,4.1357219,3823.0,3822.3,0.0254746]
[1717525630957,2.61591,3822.8,3822.3,0.0254746]
[1717525631159,2.61605,3822.6,3821.7,2.6166]
[1717525631895,2.61605,3822.6,3821.8,0.02518634]
[1717525632180,2.61605,3822.6,3821.7,2.6166]
[1717525632487,2.61605,3822.6,3821.9,0.02515014]
[1717525632653,2.61605,3822.6,3821.9,2.61647]
[1717525633200,2.61605,3822.6,3822.0,0.02511394]
[1717525634867,2.4491,3822.7,3822.1,2.61634]
[1717525635037,3.01431428,3822.7,3822.1,2.61634]
[1717525635240,4.58427618,3822.7,3822.2,0.02504156]
[1717525635642,2.13517618,3822.7,3822.2,0.02504156]
[1717525635859,0.56524146,3822.7,3822.2,0.02504156]
[1717525636066,1.57011518,3822.7,3822.2,0.02504156]
[1717525637753,1.57011518,3822.6,3822.2,0.02504156]
[1717525638311,4.18607518,3822.7,3822.2,0.02504156]
[1717525639927,1.57011518,3822.7,3822.3,2.61619]
[1717525640219,1.57011518,3822.8,3822.4,0.02488751]
[1717525640779,1.57011518,3822.9,3822.5,2.61607]
[1717525641033,1.57011518,3822.9,3822.5,2.64092132]
[1717525641212,1.57011518,3822.9,3822.6,0.26409213]
[1717525641547,1.57011518,3823.0,3822.6,0.28890727]
[1717525641748,1.57011518,3823.0,3822.6,0.02481514]
[1717525641886,1.57011518,3822.9,3822.6,0.02481514]
[1717525642308,1.57011518,3822.9,3822.2,2.88037816]
[1717525642510,1.57011518,3822.8,3822.7,0.02477896]
[1717525642693,1.57011518,3822.8,3822.2,2.88037816]
[1717525643113,1.57011518,3822.8,3822.3,0.0249237]
[1717525643484,1.57011518,3822.8,3822.3,0.53295019]
[1717525643708,2.3053,3823.4,3822.4,0.02488751]
[1717525643709,1.57011518,3823.2,3822.4,0.02488751]
[1717525644114,1.57011518,3823.3,3822.4,0.02488751]
[1717525644330,1.57011518,3823.3,3822.6,2.61599]
[1717525644679,1.57011518,3823.3,3822.7,0.02477896]
[1717525645083,1.57011518,3823.3,3822.8,2.61586]
[1717525645297,3.87541518,3823.4,3822.8,2.61586]
[1717525645518,3.87541518,3823.4,3822.9,0.0247066]
[1717525646118,1.57011518,3823.3,3822.9,0.0247066]
[1717525646320,3.87541518,3823.4,3822.9,0.0247066]
[1717525646799,1.57011518,3823.4,3822.9,0.0247066]
[1717525647001,1.57011518,3823.4,3822.9,0.28876326]
[1717525647199,1.57011518,3823.5,3822.9,0.28876326]
[1717525647413,1.57011518,3823.6,3823.0,2.61573]
[1717525647746,4.18534518,3823.8,3823.0,2.64040042]
[1717525648031,4.18534518,3823.8,3823.2,2.6156]
[1717525648226,2.61523,3823.8,3823.2,2.6156]
[1717525648398,2.61523,3823.8,3823.3,0.02597318]
[1717525648598,2.61523,3823.8,3823.2,2.6156]
[1717525648925,2.61523,3823.8,3823.4,0.02593443]
[1717525649129,2.61523,3823.8,3823.3,0.02597318]
[1717525649437,2.61523,3823.8,3823.4,0.02593443]
[1717525649635,2.61523,3823.8,3823.2,2.6156]
[1717525649824,2.61523,3823.8,3823.5,0.02589568]
[1717525650128,2.61523,3823.8,3823.2,2.6156]
[1717525650333,2.61523,3823.8,3823.6,0.02585693]
[1717525650529,2.61523,3823.8,3823.2,2.6156]
[1717525650718,2.61523,3823.8,3823.7,0.02581818]
[1717525650919,2.61523,3823.8,3823.2,2.6156]
[1717525651229,2.61523,3823.8,3823.3,0.02597318]
[1717525651436,2.61523,3823.8,3823.2,2.6156]
[1717525651604,2.61523,3823.8,3823.4,0.02593443]
[1717525651807,2.61523,3823.8,3823.2,2.6156]
[1717525652020,4.259,3824.0,3823.5,0.02589568]
[1717525652226,4.259,3824.0,3823.2,2.6156]
[1717525652436,4.259,3824.0,3823.6,0.02585693]
[1717525652730,4.259,3824.0,3823.2,2.6156]
[1717525653101,4.259,3824.0,3823.3,0.02597318]
[1717525653509,2.61503,3824.1,3823.4,2.61543]
[1717525653891,2.61503,3824.1,3823.5,0.02589568]
[1717525654092,1.872,3824.2,3823.5,0.02589568]
[1717525654317,2.2768,3824.0,3823.5,0.02589568]
[1717525654536,2.2768,3824.0,3822.7,2.3157]
[1717525654721,3.44211518,3824.2,3823.6,0.02585693]
[1717525654921,3.44211518,3824.2,3823.4,2.3157]
[1717525655108,3.44211518,3824.2,3823.7,0.02581818]
[1717525655430,3.44211518,3824.2,3823.4,2.3157]
[1717525655431,1.872,3824.2,3823.8,0.02577943]
[1717525655739,4.48696,3824.2,3823.4,4.93114]
[1717525656037,4.48696,3824.2,3823.5,0.493114]
[1717525656235,4.48696,3824.2,3823.5,0.51900968]
[1717525656919,2.61455,3824.8,3823.5,0.51900968]
[1717525656920,4.18484518,3824.5,3823.5,0.51900968]
[1717525657094,4.18484518,3824.5,3823.8,2.61517]
[1717525657297,2.61473,3824.5,3823.8,2.61517]
[1717525657535,2.61473,3824.5,3823.9,0.02555572]
[1717525657692,2.4357,3824.6,3824.0,2.61503]
[1717525657896,2.6141,3825.4,3824.5,2.61471]
[1717525657897,1.57011518,3825.0,3824.5,2.61471]
[1717525658369,2.61426,3825.2,3824.6,0.02520388]
[1717525659060,2.4357,3825.4,3824.6,0.02520388]
[1717525659191,2.4357,3825.4,3824.7,2.61457]
[1717525659532,2.61405,3825.5,3824.7,2.61457]
[1717525659842,2.61405,3825.5,3824.7,2.65261234]
[1717525660537,2.61405,3825.5,3824.7,2.66348158]
[1717525661344,2.92823196,3825.5,3824.7,2.66348158]
[1717525664350,6.92155,3825.8,3825.0,2.61437]
[1717525664957,4.48585,3825.8,3825.0,2.61437]
[1717525665309,1.872,3825.8,3825.2,2.61418]
[1717525665938,4.89085,3826.1,3824.9,2.4136]
[1717525665939,4.89085,3826.1,3825.4,2.61406]
[1717525666151,2.61365,3826.1,3825.4,2.61406]
[1717525667836,6.88254,3826.4,3825.4,2.61406]
[1717525670785,6.88254,3826.4,3825.5,2.3085]
[1717525670941,4.56900381,3826.9,3825.5,2.3085]
[1717525670942,2.61324,3826.7,3825.5,2.3085]
[1717525671266,2.61324,3826.7,3826.1,2.61362]
[1717525674590,2.61324,3826.7,3825.8,2.6138]
[1717525675592,2.61324,3826.7,3826.0,2.61365]
[1717525676886,1.872,3826.8,3826.0,2.61365]
[1717525677081,1.872,3826.8,3826.2,2.61353]
[1717525679403,4.48517,3826.8,3826.2,2.61353]
[1717525681701,2.61317,3826.8,3826.2,2.61353]
[1717525685907,2.61317,3826.8,3825.9,5.08731]
[1717525686098,0.779,3826.3,3825.9,5.08731]
[1717525686276,0.779,3826.3,3825.9,5.619126]
[1717525686463,0.779,3826.1,3825.9,2.61371]
[1717525688329,0.779,3826.1,3825.6,5.18568]
[1717525688618,1.5685626,3826.5,3826.0,2.61364]
[1717525688796,1.5685626,3826.8,3826.2,2.61354]
[1717525689003,2.3475626,3826.9,3826.2,2.61354]
[1717525689206,0.779,3826.9,3826.2,2.61354]
[1717525689711,0.779,3826.7,3826.2,2.61354]
[1717525690080,1.56834365,3827.0,3826.1,2.4229]
[1717525690081,2.61309,3826.9,3826.1,2.4229]
[1717525690278,2.61334,3826.6,3825.6,2.4229]
[1717525690498,4.48234,3826.6,3825.7,2.61389]
[1717525690668,6.05068365,3826.6,3825.7,2.61389]
[1717525690871,6.05068365,3826.6,3825.6,2.4229]
[1717525690872,2.61343,3826.4,3825.6,2.4229]
[1717525691470,1.56834365,3826.2,3825.6,2.4229]
[1717525691677,1.56834365,3826.3,3825.6,2.4229]
[1717525692015,1.56834365,3826.2,3825.6,2.4229]
[1717525692180,1.56834365,3826.2,3825.4,3.0]
[1717525692181,0.41817737,3826.2,3825.4,3.0]
[1717525692385,0.41817737,3826.2,3825.3,5.08973]
[1717525692386,1.56834365,3826.2,3825.3,5.08973]
[1717525692800,1.56834365,3826.2,3825.6,2.61395]
[1717525693004,1.56834365,3826.3,3825.6,2.61395]
[1717525693419,1.56834365,3826.4,3825.6,2.61395]
[1717525694003,1.56834365,3826.3,3825.6,2.61395]
[1717525694181,1.56834365,3826.1,3825.6,2.61395]
[1717525694916,1.56834365,3826.1,3825.4,2.4487]
[1717525695088,1.56834365,3826.1,3825.3,3.0]
[1717525695289,1.56834365,3826.0,3825.3,3.0]
[1717525695493,1.56834365,3825.9,3825.3,3.0]
[1717525696081,1.56834365,3825.9,3825.2,2.61418]
[1717525696389,1.56834365,3825.8,3825.2,2.61418]
[1717525696790,1.56834365,3825.7,3825.2,2.61418]
[1717525697204,0.56473982,3825.9,3825.2,2.61418]
[1717525697205,1.56834365,3825.8,3825.2,2.61418]
[1717525697403,2.13308347,3825.9,3825.2,2.61418]
[1717525697940,1.56834365,3825.7,3825.1,2.3081]
[1717525698936,1.56834365,3825.6,3825.1,2.3081]
[1717525699441,4.65707,3825.6,3824.7,2.4818]
[1717525699598,0.56473982,3825.5,3824.8,2.6145]
[1717525700133,1.56834365,3825.6,3824.1,2.4818]
[1717525700637,1.56834365,3825.6,3824.1,5.4818]
[1717525700844,1.56834365,3825.6,3824.2,2.4818]
[1717525701011,1.56834365,3825.6,3824.3,0.809682]
[1717525701346,1.56834365,3825.6,3824.4,2.4818]
[1717525701347,2.614,3825.6,3824.4,2.4818]
[1717525701948,2.614,3825.6,3824.3,0.809682]
[1717525701949,2.61378,3825.9,3825.0,2.34]
[1717525703158,2.61378,3825.9,3825.1,2.61428]
[1717525703298,1.56834365,3826.1,3825.3,2.61414]
[1717525703498,1.56834365,3826.2,3825.3,3.06995019]
[1717525703708,1.56834365,3826.2,3825.3,2.61414]
[1717525704115,2.61369,3826.0,3825.3,2.61414]
[1717525709858,5.82067113,3826.4,3824.3,3.42722005]
[1717525709859,1.869,3825.4,3824.4,0.54159336]
[1717525710052,2.6142,3825.3,3824.5,2.61468]
[1717525710215,2.6142,3825.3,3824.6,0.261468]
[1717525711460,2.61433,3825.1,3824.6,0.261468]
[1717525711617,2.61433,3825.1,3824.2,2.61489]
[1717525712515,2.61447,3824.9,3824.2,2.61489]
[1717525714035,2.61447,3824.9,3823.9,2.6151]
[1717525714358,2.61447,3824.9,3824.1,2.61498]
[1717525715720,2.61447,3824.9,3823.8,2.2729]
[1717525715721,5.05297,3825.2,3824.3,2.61481]
[1717525715921,5.05297,3825.2,3824.4,0.261481]
[1717525716634,5.05297,3825.2,3824.5,2.61471]
[1717525717743,1.869,3825.4,3824.5,2.61471]
[1717525717984,1.869,3825.4,3824.7,2.61454]
[1717525718190,2.61407,3825.5,3824.7,2.61454]
[1717525718343,2.61407,3825.5,3824.8,0.505394]
[1717525719446,2.6142,3825.3,3824.7,2.61454]
[1717525719647,2.6142,3825.3,3824.4,2.61475]
[1717525719888,2.2761,3825.0,3824.4,2.61475]
[1717525720371,2.2761,3825.0,3824.1,2.61495]
[1717525720693,4.1451,3825.0,3824.1,2.61495]
[1717525721740,2.61444,3824.9,3824.1,2.876445]
[1717525722498,4.1451,3825.0,3823.7,3.0]
[1717525722800,2.61473,3824.5,3823.8,2.61518]
[1717525722968,2.61473,3824.5,3823.4,2.61542]
[1717525723550,4.1451,3824.6,3823.4,2.61542]
[1717525723551,2.2761,3824.2,3823.4,2.61542]
[1717525724699,2.615,3824.1,3823.4,2.61542]
[1717525726665,2.615,3824.1,3823.1,2.61564]